[Event "14th Margaryan Memorial-IM 2024"]
[Site "Yerevan"]
[Date "2024.01.14"]
[Round "7.4"]
[White "Ivanov, Sergey"]
[Black "Movahed, Sina"]
[Result "0-1"]
[ECO "E49"]
[WhiteElo "2462"]
[BlackElo "2450"]
[Annotator "RC"]
[PlyCount "132"]
[EventDate "2024.01.08"]
[EventType "tourn"]
[EventCountry "ARM"]
[SourceTitle "playchess.com"]
[Source "ChessBase"]
[SourceQuality "1"]
[TimeControl "40/5400+30:1800+30"]

1. d4 {[%emt 0:00:04]} Nf6 {[%emt 0:01:15]} 2. c4 {[%emt 0:00:10]} e6 {[%emt 0:00:07]} 3. Nc3 {[%emt 0:00:10]} Bb4 {[%emt 0:00:06]} 4. e3 {[%emt 0:00:11]} O-O {[%emt 0:00:07]} 5. Bd3 {[%emt 0:00:09]} d5 {[%emt 0:00:08]} 6. a3 {[%emt 0:01:00]} Bxc3+ {[%emt 0:00:50]} 7. bxc3 {[%emt 0:00:08]} dxc4 {[%emt 0:01:50]} 8. Bxc4 {[%emt 0:00:44]} c5 {[%emt 0:00:31]} 9. Bd3 {[%emt 0:00:23]} Qc7 {[%emt 0:01:47]} 10. Bb2 {[%emt 0:00:19]} Nc6 {[%emt 0:03:28]} 11. Nf3 {[%emt 0:01:22]} e5 {[%emt 0:01:35]} 12. dxe5 {[%emt 0:02:26]} Nxe5 {[%emt 0:07:08]} 13. Nxe5 {[%emt 0:00:14]} Qxe5 {[%emt 0:00:02]} 14. Qe2 {[%emt 0:00:39]} Re8 {[%emt 0:06:08]} 15. c4 {[%emt 0:02:05]} Qg5 {[%emt 0:02:56]} 16. Qc2 {[%emt 0:01:15]} Bg4 {[%emt 0:06:01]} 17. h3 {[%emt 0:05:18]} Bh5 {[%emt 0:02:38]} 18. g4 {[%emt 0:02:07]} Bg6 {[%emt 0:01:09]} 19. Bxg6 {[%emt 0:08:56]} hxg6 {[%emt 0:00:41]} 20. O-O-O {[%emt 0:00:46]} Qh4 {[%emt 0:00:48]} 21. Qe2 {[%emt 0:08:21]} Ne4 {[%emt 0:04:13]} 22. Rd7 {[%emt 0:02:10]} Rad8 {[%emt 0:00:45]} 23. Rhd1 {[%emt 0:09:00]} Rxd7 {[%emt 0:00:20]} 24. Rxd7 {[%emt 0:00:02]} Qxh3 {[%emt 0:00:20]} 25. f3 {[%emt 0:04:36]} Ng5 {[%emt 0:02:18]} 26. Qd3 {[%emt 0:13:02]} Nxf3 {[%emt 0:04:35]} 27. Qd5 {[%emt 0:01:48]} Qf1+ {[%emt 0:07:45]} 28. Kc2 {[%emt 0:00:10]} Ne1+ {[%emt 0:05:16]} 29. Kb3 {[%emt 0:00:33]} Rxe3+ {[%emt 0:03:40]} 30. Ka2 {[%emt 0:02:32]} Nd3 {[%emt 0:04:41]} 31. Rxb7 {[%emt 0:10:38]} Re8 {[%emt 0:02:59]} 32. Rxa7 {[%emt 0:06:04]} Nxb2 {[%emt 0:02:10]} 33. Ra8 {[%emt 0:00:09]} Rxa8 {[%emt 0:00:12]} 34. Qxa8+ {[%emt 0:00:09]} Kh7 {[%emt 0:00:06]} 35. Kxb2 {[%emt 0:00:13]} Qe2+ {[%emt 0:01:39]} 36. Kc3 {[%emt 0:03:16]} Qe1+ {[%emt 0:00:58]} 37. Kc2 {[%emt 0:00:49]} Qf2+ {[%emt 0:00:34]} 38. Kb3 {[%emt 0:00:53]} Qg3+ {[%emt 0:02:44]} 39. Kc2 {[%emt 0:00:43]} Qh2+ {[%emt 0:00:35]} 40. Kd3 {[%emt 0:00:00]} Qh3+ {[%emt 0:00:00]} 41. Kd2 {[%emt 0:20:53]} f5 {[%emt 0:23:04]} 42. gxf5 {[%emt 0:01:13]} gxf5 {[%emt 0:00:06]} 43. a4 {[%emt 0:12:03]} Qh2+ {[%emt 0:01:35]} 44. Kd3 {[%emt 0:00:49]} Qg3+ {[%emt 0:00:45]} 45. Kc2 {[%emt 0:01:18]} Qf2+ {[%emt 0:00:31]} 46. Kb3 {[%emt 0:00:18]} Qe3+ {[%emt 0:02:10]} 47. Kc2 {[%emt 0:00:31]} f4 {[%emt 0:05:55]} 48. Qd5 {[%emt 0:02:56]} Qe2+ {[%emt 0:02:20]} 49. Kc3 {[%emt 0:00:15]} Qe1+ {[%emt 0:03:44]} 50. Kd3 {[%emt 0:04:37]} Kh6 {[%emt 0:03:32]} 51. Qxc5 {[%emt 0:00:19]} g5 {[%emt 0:02:46]} 52. a5 {[%emt 0:00:39]} Kh5 {[%emt 0:01:07]} 53. a6 {[%emt 0:01:34]} Qb1+ {[%emt 0:00:33]} 54. Ke2 {[%emt 0:01:14]} Qa2+ {[%emt 0:00:20]} 55. Kf3 {[%emt 0:00:15]} Qxa6 {[%emt 0:00:12]} 56. Qd5 {[%emt 0:03:17]} Kh4 {[%emt 0:02:45]} 57. Qd3 {[%emt 0:01:17]} g4+ {[%emt 0:01:38]} 58. Kf2 {[%emt 0:00:46]} Qa2+ {[%emt 0:05:20]} 59. Kf1 {[%emt 0:00:19]} Qa1+ {[%emt 0:00:07]} 60. Kf2 {[%emt 0:00:46]} Qb2+ {[%emt 0:00:28]} 61. Kf1 {[%emt 0:00:24]} Qc1+ {[%emt 0:00:26]} 62. Kg2 {[%emt 0:00:06]} f3+ {[%emt 0:00:45]} 63. Kf2 {[%emt 0:00:01]} Qb2+ {[%emt 0:00:07]} 64. Ke1 {[%emt 0:00:07]} Kg3 {[%emt 0:00:15]} 65. Kd1 {[%emt 0:01:15]} Kf2 {[%emt 0:00:32]} 66. c5 {[%emt 0:00:44]} Qe2+ {[%emt 0:00:04]} 0-1

[Event "14th Margaryan Memorial-IM 2024"]
[Site "Yerevan"]
[Date "2024.01.14"]
[Round "7.5"]
[White "Davtyan, Arsen"]
[Black "Shuvalova, Polina"]
[Result "1-0"]
[ECO "C89"]
[WhiteElo "2392"]
[BlackElo "2475"]
[Annotator "RC"]
[PlyCount "97"]
[EventDate "2024.01.08"]
[EventType "tourn"]
[EventCountry "ARM"]
[SourceTitle "playchess.com"]
[Source "ChessBase"]
[SourceQuality "1"]
[TimeControl "40/5400+30:1800+30"]

1. e4 {[%emt 0:01:19]} e5 {[%emt 0:00:03]} 2. Nf3 {[%emt 0:00:09]} Nc6 {[%emt 0:00:04]} 3. Bb5 {[%emt 0:00:22]} a6 {[%emt 0:00:11]} 4. Ba4 {[%emt 0:00:08]} Nf6 {[%emt 0:00:20]} 5. O-O {[%emt 0:01:03]} Be7 {[%emt 0:00:11]} 6. Re1 {[%emt 0:00:08]} b5 {[%emt 0:00:10]} 7. Bb3 {[%emt 0:00:06]} O-O {[%emt 0:00:12]} 8. c3 {[%emt 0:00:19]} Na5 {[%emt 0:01:49]} 9. Bc2 {[%emt 0:01:04]} d5 {[%emt 0:00:09]} 10. d4 {[%emt 0:00:44]} dxe4 {[%emt 0:00:40]} 11. Nxe5 {[%emt 0:00:06]} c5 {[%emt 0:06:15]} 12. Be3 {[%emt 0:00:56]} Bd6 {[%emt 0:02:55]} 13. Nd2 {[%emt 0:03:50]} cxd4 {[%emt 0:08:04]} 14. Bxd4 {[%emt 0:39:19]} Bb7 {[%emt 0:03:28]} 15. Ng4 {[%emt 0:19:11]} Nxg4 {[%emt 0:05:38]} 16. Qxg4 {[%emt 0:00:06]} g6 {[%emt 0:00:07]} 17. Qh3 {[%emt 0:07:12]} Nc6 {[%emt 0:09:20]} 18. Bxe4 {[%emt 0:02:45]} Nxd4 {[%emt 0:03:36]} 19. Bxb7 {[%emt 0:03:27]} Rb8 {[%emt 0:01:15]} 20. cxd4 {[%emt 0:02:23]} Rxb7 {[%emt 0:05:19]} 21. Ne4 {[%emt 0:01:16]} Be7 {[%emt 0:00:11]} 22. Rad1 {[%emt 0:02:40]} Rd7 {[%emt 0:01:24]} 23. Qd3 {[%emt 0:01:18]} Kg7 {[%emt 0:10:38]} 24. d5 {[%emt 0:02:53]} f5 {[%emt 0:00:20]} 25. Nc3 {[%emt 0:03:53]} Bf6 {[%emt 0:07:46]} 26. Ne2 {[%emt 0:00:36]} Be5 {[%emt 0:02:28]} 27. Nd4 {[%emt 0:02:17]} Bxd4 {[%emt 0:00:21]} 28. Qxd4+ {[%emt 0:00:01]} Qf6 {[%emt 0:00:18]} 29. Re5 {[%emt 0:00:16]} f4 {[%emt 0:02:09]} 30. Rde1 {[%emt 0:01:52]} Rff7 {[%emt 0:00:17]} 31. h3 {[%emt 0:01:53]} h5 {[%emt 0:03:13]} 32. R1e4 {[%emt 0:00:47]} Rd6 {[%emt 0:01:53]} 33. Kh2 {[%emt 0:00:36]} Kh7 {[%emt 0:04:17]} 34. Qd3 {[%emt 0:00:52]} Rfd7 {[%emt 0:03:11]} 35. Qd4 {[%emt 0:01:16]} Rf7 {[%emt 0:01:28]} 36. b3 {[%emt 0:00:01]} f3 {[%emt 0:02:42]} 37. g3 {[%emt 0:00:34]} Qd8 {[%emt 0:02:05]} 38. Re8 {[%emt 0:00:34]} Qf6 {[%emt 0:00:04]} 39. R8e5 {[%emt 0:00:29]} Qd8 {[%emt 0:00:05]} 40. Re8 {[%emt 0:00:00]} Qf6 {[%emt 0:00:00]} 41. R4e5 {[%emt 0:18:33]} Kg7 {[%emt 0:24:57]} 42. h4 {[%emt 0:02:32]} Rfd7 {[%emt 0:01:55]} 43. Qe4 {[%emt 0:00:49]} Rf7 {[%emt 0:00:39]} 44. Rc8 {[%emt 0:01:08]} Rfd7 {[%emt 0:02:02]} 45. Rc3 {[%emt 0:01:43]} Rf7 {[%emt 0:01:05]} 46. Re3 {[%emt 0:00:25]} Kh6 {[%emt 0:01:06]} 47. Qd4 {[%emt 0:01:46]} Rfd7 {[%emt 0:02:38]} 48. R3e4 {[%emt 0:00:23]} Qf7 {[%emt 0:01:37]} 49. Qe3+ {[%emt 0:01:07]} 1-0

[Event "14th Margaryan Memorial-IM 2024"]
[Site "Yerevan"]
[Date "2024.01.14"]
[Round "7.6"]
[White "Hayrapetyan, Edgar"]
[Black "Zakaryan, David"]
[Result "1-0"]
[ECO "D43"]
[WhiteElo "2233"]
[BlackElo "2299"]
[Annotator "ChessBase"]
[PlyCount "117"]
[EventDate "2024.01.08"]
[EventType "tourn"]
[EventCountry "ARM"]
[SourceTitle "playchess.com"]
[Source "ChessBase"]
[SourceQuality "1"]
[TimeControl "40/5400+30:1800+30"]

1. d4 {[%emt 0:00:03]} Nf6 {[%emt 0:00:03]} 2. c4 {[%emt 0:00:06]} e6 {[%emt 0:00:02]} 3. Nf3 {[%emt 0:00:04]} d5 {[%emt 0:00:03]} 4. Nc3 {[%emt 0:00:04]} c6 {[%emt 0:00:02]} 5. Bg5 {[%emt 0:00:06]} h6 {[%emt 0:00:04]} 6. Bh4 {[%emt 0:00:27]} dxc4 {[%emt 0:00:10]} 7. e4 {[%emt 0:00:04]} g5 {[%emt 0:00:25]} 8. Bg3 {[%emt 0:00:05]} b5 {[%emt 0:00:03]} 9. Be2 {[%emt 0:00:25]} Bb7 {[%emt 0:00:03]} 10. h4 {[%emt 0:01:52]} g4 {[%emt 0:00:02]} 11. Ne5 {[%emt 0:00:04]} Nbd7 {[%emt 0:00:36]} 12. O-O {[%emt 0:05:51]} a6 {[%emt 0:01:38]} 13. Qc2 {[%emt 0:04:30]} Rg8 {[%emt 0:10:42]} 14. Rad1 {[%emt 0:17:07]} Nh5 {[%emt 0:07:44]} 15. Nxd7 {[%emt 0:01:07]} Qxd7 {[%emt 0:01:53]} 16. Be5 {[%emt 0:03:01]} f6 {[%emt 0:03:32]} 17. Bh2 {[%emt 0:00:40]} O-O-O {[%emt 0:00:31]} 18. a4 {[%emt 0:01:58]} g3 {[%emt 0:08:41]} 19. Bxh5 {[%emt 0:07:46]} gxh2+ {[%emt 0:00:05]} 20. Kh1 {[%emt 0:00:38]} Kb8 {[%emt 0:05:10]} 21. Bf3 {[%emt 0:04:52]} Qc7 {[%emt 0:00:54]} 22. Ne2 {[%emt 0:06:15]} c5 {[%emt 0:07:05]} 23. axb5 {[%emt 0:02:59]} axb5 {[%emt 0:00:09]} 24. b3 {[%emt 0:01:32]} cxd4 {[%emt 0:02:36]} 25. Nxd4 {[%emt 0:00:45]} Qb6 {[%emt 0:00:15]} 26. Nxb5 {[%emt 0:08:29]} Rc8 {[%emt 0:00:38]} 27. bxc4 {[%emt 0:08:55]} Qxb5 {[%emt 0:00:33]} 28. Rb1 {[%emt 0:00:07]} Qe5 {[%emt 0:02:20]} 29. Qa4 {[%emt 0:00:13]} Rg7 {[%emt 0:01:05]} 30. Rb3 {[%emt 0:00:51]} Rd8 {[%emt 0:04:40]} 31. Rb5 {[%emt 0:10:06]} Bc5 {[%emt 0:01:14]} 32. Qa5 {[%emt 0:01:31]} Rc7 {[%emt 0:01:04]} 33. Rfb1 {[%emt 0:00:19]} Rd6 {[%emt 0:02:18]} 34. h5 {[%emt 0:06:38]} Rdc6 {[%emt 0:01:17]} 35. Qa4 {[%emt 0:00:49]} Rd7 {[%emt 0:13:43]} 36. R5b2 {[%emt 0:02:50]} Rcd6 {[%emt 0:04:04]} 37. Rb5 {[%emt 0:01:10]} Rc6 {[%emt 0:03:38]} 38. R5b2 {[%emt 0:00:55]} Rdc7 {[%emt 0:01:01]} 39. Rb5 {[%emt 0:02:59]} Qd4 {[%emt 0:04:39]} 40. e5 {[%emt 0:00:00]} Rb6 {[%emt 0:00:00]} 41. Ra1 {[%emt 0:17:46]} Rh7 {[%emt 0:19:37]} 42. Bxb7 {[%emt 0:07:00]} Rhxb7 {[%emt 0:00:14]} 43. Rd1 {[%emt 0:00:23]} fxe5 {[%emt 0:14:07]} 44. Rxd4 {[%emt 0:00:38]} Bxd4 {[%emt 0:00:01]} 45. Qb4 {[%emt 0:00:45]} Rxb5 {[%emt 0:01:14]} 46. Qf8+ {[%emt 0:00:07]} Ka7 {[%emt 0:00:07]} 47. cxb5 {[%emt 0:00:03]} Rxb5 {[%emt 0:00:23]} 48. Qxh6 {[%emt 0:00:18]} Bxf2 {[%emt 0:00:43]} 49. Qxe6 {[%emt 0:03:16]} Be3 {[%emt 0:01:55]} 50. Kxh2 {[%emt 0:00:56]} e4 {[%emt 0:01:11]} 51. Qf7+ {[%emt 0:00:15]} Ka6 {[%emt 0:00:26]} 52. g4 {[%emt 0:00:35]} Bb6 {[%emt 0:01:27]} 53. h6 {[%emt 0:00:26]} Rb2+ {[%emt 0:00:20]} 54. Kh3 {[%emt 0:00:06]} e3 {[%emt 0:00:10]} 55. h7 {[%emt 0:01:28]} e2 {[%emt 0:00:01]} 56. Qc4+ {[%emt 0:00:19]} Ka7 {[%emt 0:00:23]} 57. h8=Q {[%emt 0:00:27]} e1=Q {[%emt 0:00:07]} 58. Qg7+ {[%emt 0:00:06]} Kb8 {[%emt 0:00:13]} 59. Qcg8+ {[%emt 0:00:07]} 1-0

[Event "14th Margaryan Memorial-IM 2024"]
[Site "Yerevan"]
[Date "2024.01.14"]
[Round "7.7"]
[White "Gasparyan, Erik R."]
[Black "Sagradov Sahakyan, Alexander"]
[Result "1/2-1/2"]
[ECO "C01"]
[WhiteElo "2340"]
[BlackElo "1423"]
[Annotator "RC"]
[PlyCount "74"]
[EventDate "2024.01.08"]
[EventType "tourn"]
[EventCountry "ARM"]
[SourceTitle "playchess.com"]
[Source "ChessBase"]
[SourceQuality "1"]
[TimeControl "40/5400+30:1800+30"]

1. e4 {[%emt 0:00:03]} e6 {[%emt 0:00:04]} 2. d4 {[%emt 0:01:32]} d5 {[%emt 0:00:05]} 3. exd5 {[%emt 0:00:13]} exd5 {[%emt 0:00:05]} 4. Bd3 {[%emt 0:00:06]} Nc6 {[%emt 0:00:52]} 5. c3 {[%emt 0:00:28]} Bd6 {[%emt 0:00:06]} 6. Qf3 {[%emt 0:00:36]} Nge7 {[%emt 0:09:21]} 7. Ne2 {[%emt 0:02:44]} O-O {[%emt 0:04:20]} 8. O-O {[%emt 0:05:11]} Ng6 {[%emt 0:25:17]} 9. Nf4 {[%emt 0:28:25]} Qf6 {[%emt 0:19:40]} 10. Nxd5 {[%emt 0:08:04]} Qxf3 {[%emt 0:00:09]} 11. gxf3 {[%emt 0:00:02]} Nh4 {[%emt 0:01:23]} 12. Bf4 {[%emt 0:18:52]} Bh3 {[%emt 0:04:20]} 13. Rd1 {[%emt 0:03:10]} Nxf3+ {[%emt 0:00:46]} 14. Kh1 {[%emt 0:00:05]} Rad8 {[%emt 0:05:12]} 15. Be4 {[%emt 0:07:32]} Bg4 {[%emt 0:07:09]} 16. h3 {[%emt 0:00:25]} f5 {[%emt 0:03:01]} 17. hxg4 {[%emt 0:04:25]} fxe4 {[%emt 0:00:16]} 18. Be3 {[%emt 0:00:02]} h5 {[%emt 0:01:59]} 19. c4 {[%emt 0:01:07]} hxg4 {[%emt 0:02:03]} 20. Nbc3 {[%emt 0:00:10]} Rf5 {[%emt 0:00:34]} 21. Nxe4 {[%emt 0:01:49]} Rh5+ {[%emt 0:04:27]} 22. Kg2 {[%emt 0:00:04]} Rh2+ {[%emt 0:00:03]} 23. Kf1 {[%emt 0:00:04]} Ncxd4 {[%emt 0:00:43]} 24. Nxd6 {[%emt 0:05:59]} Rxd6 {[%emt 0:03:07]} 25. Bf4 {[%emt 0:00:41]} Rh1+ {[%emt 0:00:16]} 26. Kg2 {[%emt 0:00:04]} Rxd1 {[%emt 0:00:21]} 27. Rxd1 {[%emt 0:00:04]} Ra6 {[%emt 0:00:13]} 28. a3 {[%emt 0:07:09]} c5 {[%emt 0:01:20]} 29. Kg3 {[%emt 0:00:23]} Re6 {[%emt 0:02:06]} 30. b4 {[%emt 0:01:24]} Ne5 {[%emt 0:03:40]} 31. Bxe5 {[%emt 0:01:34]} Rxe5 {[%emt 0:00:01]} 32. bxc5 {[%emt 0:00:07]} Nb3 {[%emt 0:01:37]} 33. Ne3 {[%emt 0:03:13]} Nxc5 {[%emt 0:00:19]} 34. Nxg4 {[%emt 0:00:18]} Re2 {[%emt 0:00:59]} 35. Rd8+ {[%emt 0:00:30]} Kh7 {[%emt 0:00:37]} 36. Rc8 {[%emt 0:00:16]} b6 {[%emt 0:00:37]} 37. Rc7 {[%emt 0:02:09]} a5 {[%emt 0:01:52]} 1/2-1/2

[Event "14th Margaryan Memorial-IM 2024"]
[Site "Yerevan"]
[Date "2024.01.14"]
[Round "7.8"]
[White "Rostomyan, Mikayel"]
[Black "Kaiyrbekov, Rustam"]
[Result "1-0"]
[ECO "E14"]
[WhiteElo "2294"]
[BlackElo "2295"]
[Annotator "ChessBase"]
[PlyCount "111"]
[EventDate "2024.01.08"]
[EventType "tourn"]
[EventCountry "ARM"]
[SourceTitle "playchess.com"]
[Source "ChessBase"]
[SourceQuality "1"]
[TimeControl "40/5400+30:1800+30"]

1. d4 {[%emt 0:00:06]} Nf6 {[%emt 0:00:05]} 2. Nf3 {[%emt 0:00:07]} e6 {[%emt 0:00:07]} 3. c4 {[%emt 0:00:21]} Bb4+ {[%emt 0:00:19]} 4. Nbd2 {[%emt 0:00:24]} b6 {[%emt 0:02:35]} 5. a3 {[%emt 0:01:49]} Bxd2+ {[%emt 0:00:08]} 6. Qxd2 {[%emt 0:00:47]} Bb7 {[%emt 0:00:29]} 7. b4 {[%emt 0:01:28]} d6 {[%emt 0:00:30]} 8. Bb2 {[%emt 0:02:37]} Nbd7 {[%emt 0:00:06]} 9. e3 {[%emt 0:00:45]} O-O {[%emt 0:00:19]} 10. Be2 {[%emt 0:01:23]} Ne4 {[%emt 0:00:55]} 11. Qc2 {[%emt 0:00:38]} f5 {[%emt 0:00:09]} 12. O-O {[%emt 0:00:38]} Rf6 {[%emt 0:05:19]} 13. d5 {[%emt 0:04:11]} e5 {[%emt 0:13:07]} 14. Nd2 {[%emt 0:19:04]} Nxd2 {[%emt 0:03:34]} 15. Qxd2 {[%emt 0:00:07]} Rh6 {[%emt 0:02:05]} 16. g3 {[%emt 0:01:19]} Qe7 {[%emt 0:09:03]} 17. f4 {[%emt 0:02:35]} Rf6 {[%emt 0:04:17]} 18. Bf3 {[%emt 0:05:03]} Rff8 {[%emt 0:00:54]} 19. Rae1 {[%emt 0:03:22]} e4 {[%emt 0:03:18]} 20. Be2 {[%emt 0:00:23]} a5 {[%emt 0:02:54]} 21. Ra1 {[%emt 0:10:34]} Ra7 {[%emt 0:02:02]} 22. Kh1 {[%emt 0:02:32]} Nf6 {[%emt 0:02:54]} 23. Bc3 {[%emt 0:02:49]} axb4 {[%emt 0:01:18]} 24. axb4 {[%emt 0:00:24]} Rfa8 {[%emt 0:00:58]} 25. Rxa7 {[%emt 0:05:49]} Rxa7 {[%emt 0:00:03]} 26. Rg1 {[%emt 0:02:11]} Bc8 {[%emt 0:10:28]} 27. h3 {[%emt 0:03:12]} Qf7 {[%emt 0:04:15]} 28. b5 {[%emt 0:04:43]} Bd7 {[%emt 0:02:50]} 29. Qb2 {[%emt 0:00:20]} Qg6 {[%emt 0:10:55]} 30. Kh2 {[%emt 0:02:34]} Kf8 {[%emt 0:01:14]} 31. Kg2 {[%emt 0:06:13]} Ke7 {[%emt 0:00:52]} 32. Kf2 {[%emt 0:01:01]} Qh6 {[%emt 0:00:32]} 33. Kg2 {[%emt 0:01:19]} Qg6 {[%emt 0:01:57]} 34. Bd4 {[%emt 0:01:29]} Ra8 {[%emt 0:00:28]} 35. Bc3 {[%emt 0:01:09]} Ra4 {[%emt 0:02:28]} 36. Ra1 {[%emt 0:01:11]} Rxa1 {[%emt 0:00:19]} 37. Qxa1 {[%emt 0:00:01]} Ne8 {[%emt 0:03:57]} 38. Qd1 {[%emt 0:03:25]} Nf6 {[%emt 0:00:27]} 39. Qd4 {[%emt 0:02:56]} Qe8 {[%emt 0:04:34]} 40. Qd1 {[%emt 0:00:00]} Qa8 {[%emt 0:00:00]} 41. g4 {[%emt 0:20:10]} Qa2 {[%emt 0:23:31]} 42. Kg3 {[%emt 0:00:55]} Qa3 {[%emt 0:04:47]} 43. Qd2 {[%emt 0:01:04]} Qb3 {[%emt 0:03:12]} 44. g5 {[%emt 0:00:56]} Ne8 {[%emt 0:00:06]} 45. h4 {[%emt 0:03:26]} Kf8 {[%emt 0:05:01]} 46. h5 {[%emt 0:00:32]} Ke7 {[%emt 0:02:34]} 47. Kg2 {[%emt 0:00:30]} Qb1 {[%emt 0:00:12]} 48. Bb2 {[%emt 0:01:12]} g6 {[%emt 0:02:23]} 49. h6 {[%emt 0:00:36]} Kd8 {[%emt 0:00:00]} 50. Bh5 {[%emt 0:00:51]} Qd3 {[%emt 0:01:00]} 51. Qxd3 {[%emt 0:00:26]} exd3 {[%emt 0:00:30]} 52. Bxg6 {[%emt 0:01:23]} d2 {[%emt 0:00:00]} 53. Bh5 {[%emt 0:14:00]} Ke7 {[%emt 0:00:00]} 54. Kf2 {[%emt 0:00:00]} Kf8 {[%emt 0:00:00]} 55. Ke2 {[%emt 0:00:00]} Kg8 {[%emt 0:00:09]} 56. g6 {[%emt 0:00:00]} 1-0

[Event "14th Margaryan Memorial-IM 2024"]
[Site "Yerevan"]
[Date "2024.01.14"]
[Round "7.9"]
[White "Ambartsumian, Tyhran"]
[Black "Lomsadze, Davit"]
[Result "1/2-1/2"]
[ECO "C45"]
[WhiteElo "2224"]
[BlackElo "2253"]
[Annotator "RC"]
[PlyCount "50"]
[EventDate "2024.01.08"]
[EventType "tourn"]
[EventCountry "ARM"]
[SourceTitle "playchess.com"]
[Source "ChessBase"]
[SourceQuality "1"]
[TimeControl "40/5400+30:1800+30"]

1. e4 {[%emt 0:00:09]} e5 {[%emt 0:00:01]} 2. Nf3 {[%emt 0:00:08]} Nc6 {[%emt 0:00:02]} 3. d4 {[%emt 0:00:06]} exd4 {[%emt 0:00:14]} 4. Nxd4 {[%emt 0:00:05]} Bc5 {[%emt 0:00:08]} 5. Nb3 {[%emt 0:00:04]} Bb6 {[%emt 0:00:10]} 6. Nc3 {[%emt 0:00:06]} Nf6 {[%emt 0:01:06]} 7. Qe2 {[%emt 0:00:25]} d6 {[%emt 0:00:13]} 8. Be3 {[%emt 0:01:06]} O-O {[%emt 0:00:24]} 9. O-O-O {[%emt 0:04:37]} Re8 {[%emt 0:02:41]} 10. f3 {[%emt 0:00:15]} Be6 {[%emt 0:01:14]} 11. g4 {[%emt 0:04:07]} Qe7 {[%emt 0:04:14]} 12. Kb1 {[%emt 0:13:18]} Nd7 {[%emt 0:02:59]} 13. h4 {[%emt 0:13:29]} a5 {[%emt 0:01:07]} 14. a4 {[%emt 0:07:09]} Bxe3 {[%emt 0:03:59]} 15. Qxe3 {[%emt 0:00:18]} Bxb3 {[%emt 0:00:30]} 16. cxb3 {[%emt 0:01:10]} Nb4 {[%emt 0:00:07]} 17. g5 {[%emt 0:07:21]} Nc5 {[%emt 0:03:27]} 18. h5 {[%emt 0:10:35]} Rad8 {[%emt 0:01:20]} 19. g6 {[%emt 0:11:56]} c6 {[%emt 0:02:52]} 20. Rg1 {[%emt 0:05:24]} fxg6 {[%emt 0:01:30]} 21. hxg6 {[%emt 0:00:19]} d5 {[%emt 0:00:19]} 22. e5 {[%emt 0:05:12]} Qxe5 {[%emt 0:03:50]} 23. Qxc5 {[%emt 0:00:16]} Qf5+ {[%emt 0:00:07]} 24. Ka1 {[%emt 0:00:05]} Nc2+ {[%emt 0:00:09]} 25. Ka2 {[%emt 0:00:04]} Nb4+ {[%emt 0:00:12]} 1/2-1/2

[Event "14th Margaryan Memorial-IM 2024"]
[Site "Yerevan"]
[Date "2024.01.14"]
[Round "7.10"]
[White "Putrenko, Kirill"]
[Black "Pashikyan, Rudolf"]
[Result "1-0"]
[ECO "D36"]
[WhiteElo "2353"]
[BlackElo "2287"]
[Annotator "RC"]
[PlyCount "85"]
[EventDate "2024.01.08"]
[EventType "tourn"]
[EventCountry "ARM"]
[SourceTitle "playchess.com"]
[Source "ChessBase"]
[SourceQuality "1"]
[TimeControl "40/5400+30:1800+30"]

1. d4 {[%emt 0:00:03]} Nf6 {[%emt 0:00:18]} 2. c4 {[%emt 0:00:08]} e6 {[%emt 0:00:07]} 3. Nc3 {[%emt 0:00:05]} d5 {[%emt 0:00:06]} 4. cxd5 {[%emt 0:00:57]} exd5 {[%emt 0:00:46]} 5. Bg5 {[%emt 0:00:07]} c6 {[%emt 0:01:29]} 6. e3 {[%emt 0:00:14]} Be7 {[%emt 0:00:41]} 7. Bd3 {[%emt 0:00:33]} O-O {[%emt 0:00:16]} 8. Qc2 {[%emt 0:05:01]} Nbd7 {[%emt 0:00:32]} 9. h3 {[%emt 0:05:07]} h6 {[%emt 0:19:29]} 10. Bf4 {[%emt 0:00:36]} c5 {[%emt 0:00:09]} 11. Nge2 {[%emt 0:11:06]} b6 {[%emt 0:15:19]} 12. Nb5 {[%emt 0:09:26]} Bb7 {[%emt 0:01:45]} 13. Nd6 {[%emt 0:05:56]} Bxd6 {[%emt 0:00:19]} 14. Bxd6 {[%emt 0:00:02]} Re8 {[%emt 0:00:06]} 15. Qd1 {[%emt 0:13:33]} Ne4 {[%emt 0:11:55]} 16. Bf4 {[%emt 0:02:29]} c4 {[%emt 0:01:35]} 17. Bc2 {[%emt 0:00:58]} b5 {[%emt 0:00:10]} 18. O-O {[%emt 0:01:30]} Qb6 {[%emt 0:03:40]} 19. f3 {[%emt 0:04:12]} Nef6 {[%emt 0:00:27]} 20. Qd2 {[%emt 0:05:08]} Qe6 {[%emt 0:05:08]} 21. Kf2 {[%emt 0:02:46]} b4 {[%emt 0:16:06]} 22. g4 {[%emt 0:03:12]} g5 {[%emt 0:04:56]} 23. Bh2 {[%emt 0:02:09]} Nb6 {[%emt 0:00:04]} 24. b3 {[%emt 0:05:29]} c3 {[%emt 0:04:10]} 25. Qc1 {[%emt 0:00:34]} Ba6 {[%emt 0:00:05]} 26. Re1 {[%emt 0:01:36]} Bxe2 {[%emt 0:00:29]} 27. Rxe2 {[%emt 0:00:01]} a5 {[%emt 0:00:16]} 28. a4 {[%emt 0:04:59]} Nc4 29. bxc4 {[%emt 0:04:05]} dxc4 {[%emt 0:07:23]} 30. Bf5 {[%emt 0:00:31]} Qb6 {[%emt 0:01:13]} 31. h4 {[%emt 0:01:58]} Nd5 {[%emt 0:00:35]} 32. hxg5 {[%emt 0:01:54]} b3 {[%emt 0:01:45]} 33. Rb1 {[%emt 0:01:01]} hxg5 {[%emt 0:03:04]} 34. Be5 {[%emt 0:02:54]} Rxe5 {[%emt 0:02:15]} 35. dxe5 {[%emt 0:00:11]} Qc7 {[%emt 0:00:02]} 36. Qh1 {[%emt 0:05:55]} Ra6 {[%emt 0:01:13]} 37. Qh7+ {[%emt 0:00:30]} Kf8 {[%emt 0:00:01]} 38. Qh8+ {[%emt 0:00:31]} Ke7 {[%emt 0:00:02]} 39. Rd1 {[%emt 0:00:28]} Qc5 {[%emt 0:00:48]} 40. Be4 {[%emt 0:00:00]} c2 {[%emt 0:00:00]} 41. Rxd5 {[%emt 0:17:57]} Qxd5 {[%emt 0:18:11]} 42. Bxd5 {[%emt 0:00:10]} c1=Q {[%emt 0:00:04]} 43. Qh7 {[%emt 0:02:44]} 1-0